Cogmind - Beta 13 *** ADVENTURER MODE // 2024.07.26 @ 15:17:45 Player: Jefffff Result: Destroyed by L-41 Fighter with Axe Performance ------------- Evolutions (4) 2000 Regions Visited (10) 2000 Robots Destroyed (154) 770 Value Destroyed (7535) 7535 Prototype IDs (13) 260 Alien Tech Used (0) 0 Bonus (4006) 4006 TOTAL SCORE: 16571 Bonus ------- High Alert Combat Kills 1237 Follower Combat Kills 753 Entered Garrisons 600 Used RIF Installer 1500 Friendly Fire -84 Cogmind --------- Core Integrity 0/850 Matter 55/300 Energy 100/100 System Corruption 1% Temperature Cool (18) Movement Walking (260) Ox2 Location -6/Garrison Parts ------- > --- POWER (2) -------- (None) > --- PROPULSION (4) --- Carbon-fiber Leg Flexi-carbon Leg > --- UTILITY (6) ------ Huge Storage Unit Machine Analyzer Authchip [R/Combat] Relay Coupler [Grunt] (35) > --- WEAPON (3) ------- (None) > --- INVENTORY (25) --- Myomer Leg Advanced VSS Leg Advanced Heat Sink Advanced Weight Redist. System Enhanced Optical Array Advanced Transmission Jammer Authchip [R/Combat] Relay Coupler [Grunt] (41) Relay Coupler [Duelist] Relay Coupler [Sentry] Relay Coupler [Sentry] Relay Coupler [Behemoth] (11) Compact Linear Accelerator Peak State ------------ > --- POWER ------------ Improved Deuterium Engine Light Antimatter Reactor > --- PROPULSION ------- Armored Treads Armored Medium Treads Armored Heavy Treads > --- UTILITY ---------- Improved Cooling System Huge Storage Unit Improved Signal Interpreter Active Sensor Suite > --- WEAPON ----------- HERF Cannon Heavy Flail Axe > --- INVENTORY -------- Improved Deuterium Engine Improved Deuterium Engine Fusion Compressor Armored Treads Myomer Leg Advanced VSS Leg Improved Heat Sink Improved Heat Sink Improved Cooling System Machine Analyzer Transport Network Coupler Improved Targeting Computer Recoil Nullifier Advanced Transmission Jammer Improved Phase Shifter Layered Medium Armor Plating Shock Absorption System Authchip [R/Combat] Improved Dynamic Insulation System Heavy Plasma Cannon KE Penetrator KE Penetrator Magnetic Acceleration Cannon Magnetic Acceleration Cannon Remote Datajack [Rating: 95] Favorites ----------- Power Improved Deuterium Engine Engine Improved Deuterium Engine Power Core Light Fission Core Reactor Light Antimatter Reactor Propulsion Aluminum Leg Treads Armored Treads Leg Aluminum Leg Wheel Subdweller Monowheel Utility Huge Storage Unit Device Improved Cooling System Storage Huge Storage Unit Processor Advanced Terrain Scan Processor Hackware System Shield Protection Hardened Light Armor Plating Weapon Improved Light Cannon Energy Gun Plasma Rifle Energy Cannon HERF Cannon Ballistic Gun KE Penetrator Ballistic Cannon Improved Light Cannon Launcher Grenade Launcher Special Weapon Mining Laser Impact Weapon Heavy Flail Slashing Weapon Axe Build | -11 -10 -10 -8 -7 -7 -7 -6 -6 -6 -6 ------- Run | Yrd Mat Sub Mat Fac Gar Fac Fac Gar Fac Gar Slots Evolved 8 | . . . 4 2 . . 2 . . . Power 1 | . . . . . . . 1 . . . Propulsion 2 | . . . . 2 . . . . . . Utility 4 | . . . 4 . . . . . . . Weapon 1 | . . . . . . . 1 . . . Parts Attached 231 | 6 24 15 25 27 50 2 8 60 1 13 Power 32 | 1 3 2 3 2 7 . 1 11 . 2 Engine 24 | 1 3 2 3 2 4 . 1 7 . 1 Core 3 | . . . . . 1 . . 1 . 1 Reactor 5 | . . . . . 2 . . 3 . . Propulsion 67 | 2 7 7 7 6 14 . 2 17 . 5 Treads 17 | . . . . 1 10 . . 6 . . Leg 37 | 2 7 3 1 5 4 . . 10 . 5 Wheel 13 | . . 4 6 . . . 2 1 . . Hover . | . . . . . . . . . . . Flight . | . . . . . . . . . . . Utility 70 | 1 5 1 11 10 13 2 3 19 1 4 Device 27 | . 1 . 6 . 7 2 1 9 1 . Storage 5 | 1 2 . 1 1 . . . . . . Processor 8 | . . . 2 1 . . 1 3 . 1 Hackware 3 | . . . 1 . . . . . . 2 Protection 27 | . 2 1 1 8 6 . 1 7 . 1 Artifact . | . . . . . . . . . . . Weapon 62 | 2 9 5 4 9 16 . 2 13 . 2 Energy Gun 7 | . . . . 3 . . . 4 . . Energy Cannon 4 | . . 1 . . 2 . 1 . . . Ballistic Gun 14 | 2 . . 1 1 6 . 1 3 . . Ballistic Cannon 20 | . 9 1 1 2 4 . . 2 . 1 Launcher 1 | . . 1 . . . . . . . . Special Weapon 2 | . . 1 . . . . . . . 1 Impact Weapon 7 | . . 1 1 1 3 . . 1 . . Slashing Weapon 7 | . . . 1 2 1 . . 3 . . Piercing Weapon . | . . . . . . . . . . . Special Melee Weapon . | . . . . . . . . . . . Unidentified Prototypes 3 | . . . . . . . . 3 . . Parts Lost 57 | . . 5 5 6 11 1 . 8 1 20 Power 8 | . . 1 . . 2 . . 1 . 4 Propulsion 16 | . . 2 2 1 4 1 . . . 6 Utility 20 | . . . 1 5 4 . . 3 1 6 Weapon 13 | . . 2 2 . 1 . . 4 . 4 Highest Loss Streak 20 | . . 2 2 3 5 1 . 5 1 20 To Critical Strikes . | . . . . . . . . . . . Average Slot Usage (%) 93 | . 97 97 96 78 92 95 85 94 100 93 Engine 8 | . 13 14 9 6 5 . 6 5 6 5 Reactor 2 | . . . . . 1 7 6 5 6 5 Treads 5 | . . . . 2 18 26 1 8 . . Leg 13 | . 26 16 . 18 7 . . 11 26 24 Wheel 4 | . . 11 16 . . . 11 1 . . Device 9 | . 8 3 24 6 9 6 13 9 11 9 Storage 9 | . 14 14 9 6 6 7 6 6 6 6 Processor 5 | . . . 7 6 6 7 5 10 14 14 Protection 11 | . 5 10 1 17 18 23 13 12 6 5 Ballistic Gun 2 | . . . 3 . 3 . 5 3 . . Ballistic Cannon 10 | . 26 14 5 . 4 . . 8 13 12 Impact Weapon 3 | . . 8 5 5 2 7 . 1 . . Slashing Weapon 2 | . . . 3 3 2 7 6 3 . . Naked Turns . | . . . . . . . . . . . Heaviest Build 136 | 13 73 57 99 121 121 112 133 136 131 131 Greatest Support 107 | 20 20 40 40 97 100 100 56 107 65 65 Greatest Overweight (x) 6 | 1 3 2 6 1 6 2 4 6 2 2 Average Overweight (x) 1 | . 1 1 3 1 1 1 2 1 1 1 Largest Inventory Capacity 25 | 8 20 20 25 25 25 25 25 25 25 25 Average Capacity 22 | 6 16 20 23 25 25 25 25 25 25 25 Most Carried 25 | 5 20 20 25 25 25 25 25 25 25 25 Average Carried 21 | 2 15 17 22 24 24 24 24 24 24 23 Final Capacity 25 | 8 20 20 25 25 25 25 25 25 25 25 Final Carried 25 | 2 20 20 25 24 25 23 25 25 25 13 Class Distribution -------------------- 50% | Mutant 29% | Scavenger-Mutant 6% | Scavenger-Gunner 4% | Hacker-Assassin 3% | Scavenger-Tank 3% | Hacker-Skirmisher Dominant Class ---------------- Mutant | -10/Materials Mutant | -10/Subcaves Hacker-Assassin | -8/Materials Mutant | -7/Factory Scavenger-Mutant | -7/Garrison Scavenger-Mutant | -7/Factory Scavenger-Mutant | -6/Factory Scavenger-Mutant | -6/Garrison Scavenger-Tank | -6/Factory Scavenger-Tank | -6/Garrison Resources | -11 -10 -10 -8 -7 -7 -7 -6 -6 -6 -6 ----------- Run | Yrd Mat Sub Mat Fac Gar Fac Fac Gar Fac Gar Matter Collected 5453 | 241 631 509 773 270 1297 29 6 1646 10 41 Remotely . | . . . . . . . . . . . Salvage Created 5890 | . 753 358 1210 781 1383 . . 1357 . 48 Parts 300 | . 42 27 70 38 59 . . 62 . 2 Haulers Intercepted 5 | . 2 . 3 . . . . . . . Recyclers Shooed 1 | . 1 . . . . . . . . . Parts Field Recycled . | . . . . . . . . . . . Retrieved Matter . | . . . . . . . . . . . Parts Self-Destructed . | . . . . . . . . . . . Prevented . | . . . . . . . . . . . Kills | -11 -10 -10 -8 -7 -7 -7 -6 -6 -6 -6 ------- Run | Yrd Mat Sub Mat Fac Gar Fac Fac Gar Fac Gar Combat Hostiles Destroyed 128 | . 14 15 21 18 30 . . 28 . 2 Melee 30 | . . 3 4 13 9 . . 1 . . Guns 26 | . . . 2 2 4 . . 17 . 1 Cannons 60 | . 14 9 13 1 13 . . 9 . 1 AOE 1 | . . 1 . . . . . . . . Classes Destroyed 17 | . 6 1 5 1 3 . . 1 . . Worker 3 | . 2 . 1 . . . . . . . Builder 2 | . . . 2 . . . . . . . Hauler 5 | . 2 . 3 . . . . . . . Recycler 6 | . 4 . 1 1 . . . . . . Mechanic 1 | . . . 1 . . . . . . . Operator 1 | . . . 1 . . . . . . . Watcher 8 | . 3 . 4 . 1 . . . . . Swarmer 20 | . 3 . 6 7 . . . 3 . 1 Cutter 3 | . . . . . 3 . . . . . Grunt 53 | . 11 . 8 5 15 . . 14 . . Brawler 2 | . . . 1 . 1 . . . . . Duelist 2 | . . . . . 2 . . . . . Sentry 13 | . . . 6 2 1 . . 4 . . Hunter 5 | . . . . . . . . 4 . 1 Programmer 14 | . . . . 4 7 . . 3 . . Behemoth 1 | . . . . . 1 . . . . . Subdweller 15 | . . 15 . . . . . . . . Best Kill Streak 10 | . 8 2 10 6 4 . . 6 . 1 Combat Bots Only 8 | . 3 2 8 5 4 . . 6 . 1 Max Kills in Single Turn 2 | . 2 1 2 1 1 . . 2 . 1 Gunslinging . | . . . . . . . . . . . Exploded 1 | . . 1 . . . . . . . . Melee 1 | . . 1 1 1 1 . . 1 . . Uniques/NPCs Destroyed . | . . . . . . . . . . . Combat | -11 -10 -10 -8 -7 -7 -7 -6 -6 -6 -6 -------- Run | Yrd Mat Sub Mat Fac Gar Fac Fac Gar Fac Gar Hostile Shots Fired 1564 | . 39 89 117 276 280 14 48 415 2 284 Missed 448 | . 6 24 39 72 75 5 18 142 1 66 Damage Taken 13197 | . 332 1110 771 1957 3022 122 440 2607 16 2820 Core 1886 | . 87 145 147 244 371 24 76 325 . 467 Absorbed by Shields 8 | . . . . . 8 . . . . . Redirected to Shielding 105 | . 17 . . . 28 5 . 55 . . Ignored by Resistances 3841 | . 101 311 223 588 857 35 120 780 4 822 Regen/Repaired (Parts) 146 | . 43 . . 34 . 69 . . . . Core Remaining (%) 47 | 100 . 7 73 . . 8 . . . . Volleys Fired 428 | . 50 58 77 12 94 . . 107 6 24 Largest 3 | . 2 2 2 2 2 . . 2 1 3 Hottest 198 | . 78 100 69 126 130 . . 123 75 198 Shots Fired 731 | . 100 102 128 17 133 . . 205 6 40 Gun 246 | . 4 . 51 11 37 . . 134 6 3 Cannon 473 | . 96 96 77 6 96 . . 71 . 31 Launcher 4 | . . 4 . . . . . . . . Special 8 | . . 2 . . . . . . . 6 Kinetic 655 | . 100 82 128 9 110 . . 195 . 31 Thermal 65 | . . 16 . 8 23 . . 9 6 3 Explosive 4 | . . 4 . . . . . . . . Electromagnetic 1 | . . . . . . . . 1 . . Robot Hit Streak 44 | . 11 44 19 8 18 . . 20 9 10 Robot Miss Streak 3 | . 2 2 2 2 3 . . 2 2 3 Penetration Max 1 | . . . . . 1 . . 1 . . Secondary Targets 3 | . . . . . . . . 3 . . Max Gunslinging Chain 1 | . . . . . . . . 1 . . Shots Hit Robots 645 | . 59 97 114 61 131 6 . 147 2 28 Core Hits 239 | . 27 21 42 17 63 1 . 59 1 8 Critical Kills 4 | . . . 1 . . . . 3 . . Critical Parts Destroyed 9 | . . . 2 2 3 . . 2 . . Critical Strikes 36 | . 3 1 6 4 8 1 . 8 . 5 Destroy 4 | . . . 1 . . . . 3 . . Blast 14 | . 3 1 1 . 1 . . 3 . 5 Smash 9 | . . . 2 2 3 . . 2 . . Sever 9 | . . . 2 2 4 1 . . . . Melee Attacks 263 | . . 33 22 68 62 12 9 57 . . Thermal 5 | . . . . . . . . 5 . . Impact 128 | . . 33 10 30 25 1 . 29 . . Slashing 130 | . . . 12 38 37 11 9 23 . . Piercing . | . . . . . . . . . . . Sneak Attacks 4 | . . . 3 1 . . . . . . Combat Hostiles . | . . . . . . . . . . . Follow-up Attacks 12 | . . . . 6 5 1 . . . . Damage Inflicted 18029 | . 1244 2214 2858 2218 4065 194 . 4420 21 795 Guns 3618 | . 13 . 594 175 611 . . 2140 21 64 Cannons 8332 | . 1231 1447 1383 74 1807 . . 1666 . 724 Explosions 257 | . . 257 . . . . . . . . Melee 5815 | . . 510 881 1969 1647 194 . 614 . . Ramming 7 | . . . . . . . . . . 7 Kinetic 10933 | . 1244 1236 1977 151 1875 . . 3726 . 724 Thermal 985 | . . 211 . 98 543 . . 48 21 64 Explosive 257 | . . 257 . . . . . . . . Electromagnetic 32 | . . . . . . . . 32 . . Impact 3080 | . . 510 263 938 727 28 . 614 . . Slashing 2735 | . . . 618 1031 920 166 . . . . Piercing . | . . . . . . . . . . . Highest Corruption 16 | . . . . 6 15 16 . 1 1 1 Average Corruption 7 | . . . . 2 12 15 . 1 1 1 Corruption Purged . | . . . . . . . . . . . Corruption Blocked . | . . . . . . . . . . . Effects 167 | . . . . 13 128 13 . 8 3 2 Message Errors 42 | . . . . 1 35 3 . 1 1 1 Matter Fused 34 | . . . . 4 24 3 . 2 1 . Heat Flow Errors 21 | . . . . 3 15 2 . . 1 . Energy Discharges 27 | . . . . 2 20 1 . 4 . . Parts Rejected 3 | . . . . 1 2 . . . . . Parts Fused 3 | . . . . 1 2 . . . . . Data Loss (minor) 19 | . . . . 1 13 4 . 1 . . Data Loss (major) 9 | . . . . . 9 . . . . . Misfires 2 | . . . . . 2 . . . . . Alerts 2 | . . . . . 2 . . . . . Weapon Failures 5 | . . . . . 4 . . . . 1 Overload Shots . | . . . . . . . . . . . Overflow Damage 924 | . 1 63 152 275 299 . . 114 . 20 Projectiles 106 | . 1 . 53 . 29 . . 3 . 20 Explosions . | . . . . . . . . . . . Melee 818 | . . 63 99 275 270 . . 111 . . Knockbacks 90 | . 10 15 16 2 22 . . 16 . 9 Impact 6 | . . . . 2 2 . . 2 . . Kinetic 84 | . 10 15 16 . 20 . . 14 . 9 Secondary . | . . . . . . . . . . . Self-Inflicted Damage . | . . . . . . . . . . . Shots . | . . . . . . . . . . . Rammed . | . . . . . . . . . . . Targets Rammed 1 | . . . . . . . . . . 1 Kicked 1 | . . . . . . . . . . 1 Crushed . | . . . . . . . . . . . Highest Temperature 409 | . 141 225 48 242 252 151 . 150 207 409 Average Temperature 63 | . 46 73 14 66 83 85 . 51 120 164 Received Heat Transfer 4334 | . 198 824 324 555 951 . 48 897 9 528 Effects 5 | . . . . 2 . . . . . 3 Shutdowns 2 | . . . . . . . . . . 2 Interference 2 | . . . . 2 . . . . . . Short Circuit 1 | . . . . . . . . . . 1 Siege Activations . | . . . . . . . . . . . Robots Corrupted . | . . . . . . . . . . . Combat Hostiles . | . . . . . . . . . . . Parts Fried 15 | . . 2 4 2 1 . . 6 . . Impact Corruptions 29 | . . 3 2 11 9 . . 4 . . Robots Melted . | . . . . . . . . . . . Combat Hostiles . | . . . . . . . . . . . Parts Melted 6 | . . 1 . 2 1 . . 2 . . Heat Transferred 1620 | . . 444 . 185 740 . . 100 50 101 Parts Sabotaged . | . . . . . . . . . . . Parts Stolen . | . . . . . . . . . . . Parts Stripped . | . . . . . . . . . . . Power Chain Reactions . | . . . . . . . . . . . Alert | -11 -10 -10 -8 -7 -7 -7 -6 -6 -6 -6 ------- Run | Yrd Mat Sub Mat Fac Gar Fac Fac Gar Fac Gar Peak Influence 3766 | . 204 . 349 171 2219 1024 452 3766 1846 1148 Initial 1713 | . . . . 17 45 1009 428 154 1713 1139 Average 866 | . 25 . 141 79 1057 1014 436 1694 1815 1113 Maximum Alert Level 5 | . 1 . 1 . 5 3 2 5 5 4 Low Security (%) 38 | 100 98 . 66 100 10 . . 1 . . Level 1 11 | . 1 . 33 . 8 . . 17 . . Level 2 9 | . . . . . 17 . 99 10 . . Level 3 9 | . . . . . 21 100 . 9 . 22 Level 4 8 | . . . . . 19 . . 11 . 77 Level 5 22 | . . . . . 22 . . 50 100 . High Security . | . . . . . . . . . . . Max Security . | . . . . . . . . . . . Squads Dispatched 19 | . 3 . 1 11 . 1 1 . 2 . Investigation 9 | . 3 . . 4 . . 1 . 1 . Extermination 4 | . . . . 3 . 1 . . . . Reinforcement 6 | . . . 1 4 . . . . 1 . Assault . | . . . . . . . . . . . Garrison . | . . . . . . . . . . . Intercept . | . . . . . . . . . . . Searches Triggered . | . . . . . . . . . . . Construction Impeded 1 | . . . 1 . . . . . . . Haulers Reinforced 1 | . . . . . . . . . 1 . Active Scanning Responses . | . . . . . . . . . . . Cargo Convoy Interrupts . | . . . . . . . . . . . Alert ID Control Effect 1 | . . . . . . . . . . 1 Stealth | -11 -10 -10 -8 -7 -7 -7 -6 -6 -6 -6 --------- Run | Yrd Mat Sub Mat Fac Gar Fac Fac Gar Fac Gar Distress Signals 6 | . 1 . 3 1 1 . . . . . Communications Jammed . | . . . . . . . . . . . Distress Signals . | . . . . . . . . . . . Times Spotted 204 | . 19 15 34 30 46 1 2 33 5 19 Peak Tracking Total 13 | . 3 2 5 6 5 1 2 5 3 13 Tactical Retreats 10 | . . . 2 1 7 . . . . . Traps | -11 -10 -10 -8 -7 -7 -7 -6 -6 -6 -6 ------- Run | Yrd Mat Sub Mat Fac Gar Fac Fac Gar Fac Gar Traps Triggered 19 | . 7 . . 1 10 . . 1 . . Indirectly . | . . . . . . . . . . . Trap Hack Attempts . | . . . . . . . . . . . Triggered . | . . . . . . . . . . . Disarmed . | . . . . . . . . . . . Reprogrammed . | . . . . . . . . . . . Reused . | . . . . . . . . . . . Traps Extracted . | . . . . . . . . . . . Installed . | . . . . . . . . . . . Triggered . | . . . . . . . . . . . Machines | -11 -10 -10 -8 -7 -7 -7 -6 -6 -6 -6 ---------- Run | Yrd Mat Sub Mat Fac Gar Fac Fac Gar Fac Gar Machines Disabled 22 | . 2 1 3 1 6 . . 8 . 1 Max in Single Turn 2 | . 2 1 1 1 1 . . 1 . . Garrison Relay 8 | . . . . . 4 . . 4 . . Machines Repaired . | . . . . . . . . . . . Machines Dismantled . | . . . . . . . . . . . Machines Sabotaged . | . . . . . . . . . . . Overloaded Fab Kills . | . . . . . . . . . . . Hacking | -11 -10 -10 -8 -7 -7 -7 -6 -6 -6 -6 --------- Run | Yrd Mat Sub Mat Fac Gar Fac Fac Gar Fac Gar Machines Accessed 31 | . 7 2 6 7 2 2 2 2 1 . Terminals 18 | . 6 . 5 3 2 . . 2 . . Fabricators . | . . . . . . . . . . . Repair Stations 5 | . 1 . . 3 . 1 . . . . Recycling Units . | . . . . . . . . . . . Scanalyzers 3 | . . . 1 . . 1 1 . . . Garrison Access 3 | . . . . 1 . . 1 . 1 . Total Hacks 101 | . 27 11 18 16 4 13 3 6 3 . Successful 56 | . 11 11 9 8 2 10 1 3 1 . Failed 45 | . 16 . 9 8 2 3 2 3 2 . Catastrophic 6 | . 1 . . 1 1 . 1 1 1 . Database Lockouts . | . . . . . . . . . . . Manual 54 | . 26 . 13 7 1 . 1 4 2 . Terminals 56 | . 25 . 15 6 4 . . 6 . . Fabricators . | . . . . . . . . . . . Repair Stations 19 | . 2 . . 7 . 10 . . . . Recycling Units . | . . . . . . . . . . . Scanalyzers 7 | . . . 3 . . 3 1 . . . Garrison Access 8 | . . . . 3 . . 2 . 3 . Terminal Hacks 22 | . 4 11 3 . 2 . . 2 . . Record 10 | . . 10 . . . . . . . . Part Schematic 1 | . 1 . . . . . . . . . Robot Analysis 1 | . . . 1 . . . . . . . Open Door 1 | . . . . . 1 . . . . . Level Access Points 1 | . 1 . . . . . . . . . Branch Access Points 1 | . 1 . . . . . . . . . Emergency Access Points 2 | . . . . . 1 . . 1 . . Terminal Index 2 | . 1 . 1 . . . . . . . Garrison Index 1 | . . . 1 . . . . . . . Garrison Registry 1 | . . . . . . . . 1 . . Derelict Proto ID Bank 1 | . . 1 . . . . . . . . Fabricator Hacks . | . . . . . . . . . . . Repair Station Hacks 13 | . 2 . . 4 . 7 . . . . Scan Component 7 | . 1 . . 2 . 4 . . . . Repair 6 | . 1 . . 2 . 3 . . . . Recycling Unit Hacks . | . . . . . . . . . . . Scanalyzer 5 | . . . 2 . . 3 . . . . Insert Component 2 | . . . 1 . . 1 . . . . Analyze 3 | . . . 1 . . 2 . . . . Garrison Access Hacks 3 | . . . . 1 . . 1 . 1 . Unlock Access 3 | . . . . 1 . . 1 . 1 . Unauthorized Hacks 13 | . 5 . 4 3 . . . 1 . . Terminals 12 | . 5 . 4 2 . . . 1 . . Botnet 12 | . 5 . 4 2 . . . 1 . . Fabricators . | . . . . . . . . . . . Repair Stations . | . . . . . . . . . . . Recycling Units . | . . . . . . . . . . . Scanalyzers . | . . . . . . . . . . . Garrison Access 1 | . . . . 1 . . . . . . Reprogram 1 | . . . . 1 . . . . . . Data Cores Recovered 1 | . . . 1 . . . . . . . Used 1 | . . . 1 . . . . . . . Hacking Detections 26 | . 6 . 5 7 1 2 2 2 1 . Full Trace Events 7 | . 1 . . 3 . . 1 1 1 . Feedback Events . | . . . . . . . . . . . Feedback Blocked . | . . . . . . . . . . . Robot Schematics Acquired . | . . . . . . . . . . . Robots Built . | . . . . . . . . . . . Authchips . | . . . . . . . . . . . Time . | . . . . . . . . . . . Total Robot Build Rating . | . . . . . . . . . . . Part Schematics Acquired 3 | . 1 . 1 . . 1 . . . . Parts Built . | . . . . . . . . . . . Authchips . | . . . . . . . . . . . Time . | . . . . . . . . . . . Total Part Build Rating . | . . . . . . . . . . . Parts Repaired 5 | . 1 . . 2 . 2 . . . . Time 229 | . 32 . . 41 . 156 . . . . Parts Recycled . | . . . . . . . . . . . Recycled Matter . | . . . . . . . . . . . Retrieved Matter . | . . . . . . . . . . . Retrieved Components . | . . . . . . . . . . . Parts Scanalyzed 2 | . . . 1 . . 1 . . . . Part Schematics Acquired 2 | . . . 1 . . 1 . . . . Parts Damaged . | . . . . . . . . . . . Bothacking | -11 -10 -10 -8 -7 -7 -7 -6 -6 -6 -6 ------------ Run | Yrd Mat Sub Mat Fac Gar Fac Fac Gar Fac Gar Used RIF Installer 3 | . . . . . 2 . . 1 . . Alert ID Control 1 | . . . . . . . . 1 . . Program Shield 1 | . . . . . 1 . . . . . Robots Hacked 5 | . . . . . . . . . . 5 Non-combat . | . . . . . . . . . . . Combat 5 | . . . . . . . . . . 5 Robot Hacks Applied 6 | . . . . . . . . . . 6 parse_system 4 | . . . . . . . . . . 4 overwrite_iff 2 | . . . . . . . . . . 2 Relay Couplers Released 27 | . . . . . 13 . . 14 . . Machine Destruction 27 | . . . . . 13 . . 14 . . Attached 1 | . . . . . . . . . . 1 Fabnet Peak Effective % . | . . . . . . . . . . . Robots Rewired 5 | . . . . . . . . 5 . . Allies Hacked . | . . . . . . . . . . . Hacks Repelled . | . . . . . . . . . . . Allies | -11 -10 -10 -8 -7 -7 -7 -6 -6 -6 -6 -------- Run | Yrd Mat Sub Mat Fac Gar Fac Fac Gar Fac Gar Total Allies 11 | . . . . 2 2 . . 5 . 2 Largest Group 3 | . . . . 2 2 . . 3 3 3 Highest-Rated Group 198 | . . . . 32 70 . . 198 131 131 Highest-Rated Ally 99 | . . . . 16 39 . . 99 51 51 Total Orders . | . . . . . . . . . . . Ally Attacks 105 | . . . . 11 40 . . 13 19 22 Total Damage 2206 | . . . . 172 602 . . 431 640 361 Kills 23 | . . . . 1 7 . . 6 7 2 Allies Corrupted . | . . . . . . . . . . . Allies Melted . | . . . . . . . . . . . Intel | -11 -10 -10 -8 -7 -7 -7 -6 -6 -6 -6 ------- Run | Yrd Mat Sub Mat Fac Gar Fac Fac Gar Fac Gar Robot Analysis Total 1 | . . . 1 . . . . . . . Derelict Logs Recovered 1 | . . 1 . . . . . . . . Drone Launches . | . . . . . . . . . . . Drone Recoveries . | . . . . . . . . . . . Exploration | -11 -10 -10 -8 -7 -7 -7 -6 -6 -6 -6 ------------- Run | Yrd Mat Sub Mat Fac Gar Fac Fac Gar Fac Gar Turns Passed 20502 | 59 3091 3747 1832 1720 3297 362 403 5413 287 291 Spaces Moved 8624 | 54 1253 1949 946 729 1162 76 253 2021 112 69 Core 29 | 29 . . . . . . . . . . Treads 1908 | . . . . . 831 76 14 987 . . Legs 4071 | 25 1253 677 2 729 331 . . 873 112 69 Wheels 2616 | . . 1272 944 . . . 239 161 . . Hover . | . . . . . . . . . . . Flight . | . . . . . . . . . . . Fastest Speed 50 | 50 120 120 110 185 158 238 130 130 190 190 Average Speed 195 | 86 210 168 134 186 233 253 140 222 241 255 Slowest Speed 550 | 120 330 260 540 190 550 312 312 540 260 260 Overloaded Moves . | . . . . . . . . . . . Propulsion Burnouts . | . . . . . . . . . . . Robots Hopped . | . . . . . . . . . . . Cave-ins Triggered . | . . . . . . . . . . . Exploration Rate (%) 41 | 4 100 69 48 18 98 2 9 98 2 13 Regions Visited 10 Branch Regions 1 Pre-discovered Areas 1 | . . 1 . . . . . . . . Known Exits Taken 3 | . . . . 1 . . 1 . 1 . Unknown Exits Taken 5 | 1 1 1 1 . . 1 . . . . Scrap Searched 9 | . . 9 . . . . . . . . Spaces Dug 48 | . 3 . . 13 1 4 9 18 . . Terrain Destroyed 101 | . 8 25 10 13 1 4 9 29 . 2 Melee 43 | . . . . 12 . 4 9 18 . . Projectile 33 | . 8 . 10 1 1 . . 11 . 2 AOE 25 | . . 25 . . . . . . . . Terrain Rammed . | . . . . . . . . . . . Walls Destroyed . | . . . . . . . . . . . Machines Disabled . | . . . . . . . . . . . Actions | -11 -10 -10 -8 -7 -7 -7 -6 -6 -6 -6 --------- Run | Yrd Mat Sub Mat Fac Gar Fac Fac Gar Fac Gar Total 11324 | 66 1617 2270 1387 984 1533 227 287 2681 125 147 Wait 1307 | . 232 189 236 125 70 137 5 272 2 39 Move 8614 | 53 1252 1948 945 728 1161 75 253 2019 111 69 Hop . | . . . . . . . . . . . Pick Up 216 | 7 35 13 41 18 36 1 6 55 3 1 Fast Attach 70 | 1 11 2 6 5 16 1 2 26 . . Attach 68 | 5 2 6 6 6 14 . 2 13 1 13 Detach 2 | . . 1 . . 1 . . . . . Swap 93 | . 11 7 13 16 20 1 4 21 . . Drop 227 | . 24 13 43 15 39 1 6 84 2 . Fire 428 | . 50 58 77 12 94 . . 107 6 24 Melee 241 | . . 33 20 59 55 11 9 54 . . Ram . | . . . . . . . . . . . Kick 1 | . . . . . . . . . . 1 Crush . | . . . . . . . . . . . Escape Stasis 29 | . . . . . 27 . . 2 . . Rewire 28 | . . . . . . . . 28 . . Trap . | . . . . . . . . . . . Miscellaneous . | . . . . . . . . . . . Route ------- -11/Scrapyard -10/Materials (discovered 6 exits: *Mat x3 / *Min x2 / *Sub) -10/Subcaves -8/Materials (discovered 2 exits: *Fac x2) -7/Factory -7/Garrison (discovered 3 exits: *Fac x3) -7/Factory -6/Factory -6/Garrison (discovered 3 exits: *Fac x3) -6/Factory -6/Garrison History --------- Turn | Location | Event 3 | -11/Scrapyard | Discovered new exit (range 15) 60 | -11/Scrapyard | Entered Materials 84 | -10/Materials | Discovered new exit (range 16) 302 | -10/Materials | Build established: Mutant 480 | -10/Materials | Discovered new exit (range 15) 733 | -10/Materials | Discovered new exit (range 16) 1107 | -10/Materials | Discovered new exit (range 5) 1362 | -10/Materials | Discovered new exit (range 3) 1773 | -10/Materials | Identified exit to Mines 1773 | -10/Materials | Identified exit to Materials 2962 | -10/Materials | Repaired Imp. Light Cannon 3151 | -10/Materials | Entered Subcaves 3300 | -10/Subcaves | Visited Clippyterm 3393 | -10/Subcaves | Shifting Twisted Machinery released Shrapnel Trap 3393 | -10/Subcaves | Shifting Twisted Machinery released Mak. Hammer 4082 | -10/Subcaves | Core integrity fell below 50% 4312 | -10/Subcaves | Learned location of Storage (-9) 4475 | -10/Subcaves | A swath of the cavern ceiling suddenly collapsed 4798 | -10/Subcaves | Disturbed a concealed Subdweller 4932 | -10/Subcaves | Shifting Twisted Machinery released Sub. Shrapnel Launcher 5257 | -10/Subcaves | Disturbed a concealed Subdweller 5277 | -10/Subcaves | Disturbed a concealed Subdweller 5293 | -10/Subcaves | Core integrity fell below 20% 5459 | -10/Subcaves | Ambushed by Subdwellers from Twisted Machinery 5778 | -10/Subcaves | Shifting Twisted Machinery released Ripper 6033 | -10/Subcaves | Discovered new exit (range 10) 6100 | -10/Subcaves | Visited 4L-MR0's lab 6112 | -10/Subcaves | Found Arachnoskeleton 6898 | -10/Subcaves | Entered Materials 6898 | -8/Materials | Evolved 4 slots: Utility x4 7214 | -8/Materials | Build established: Hacker-Mutant 7227 | -8/Materials | Destroyed 8 combat bots 7537 | -8/Materials | Build established: Hacker-Skirmisher 7734 | -8/Materials | Discovered new exit (range 7) 7885 | -8/Materials | Discovered new exit (range 16) 8243 | -8/Materials | Build established: Hacker-Assassin 8730 | -8/Materials | Entered Factory 8730 | -7/Factory | Evolved 2 slots: Propulsion x2 8732 | -7/Factory | Attached Arachnoskeleton, gained temporary slots: Propulsion x3 8934 | -7/Factory | Lost 3 parts (3u) 9180 | -7/Factory | Build established: Mutant 9467 | -7/Factory | Repaired Ripper 9602 | -7/Factory | Repaired Imp. Sensor Array 10435 | -7/Factory | Identified exit to Garrison 10450 | -7/Factory | Entered Garrison 10450 | -7/Garrison | Accompanied by 1 ally 10512 | -7/Garrison | Triggered checkpoint 10786 | -7/Garrison | Garrison Relay disabled 11038 | -7/Garrison | Triggered checkpoint 11042 | -7/Garrison | Triggered checkpoint 11215 | -7/Garrison | Garrison Relay disabled 11255 | -7/Garrison | Discovered new exit (range 15) 11301 | -7/Garrison | System corruption reached 10% 11311 | -7/Garrison | Core integrity fell below 50% 11337 | -7/Garrison | Lost 5 parts (1p2n2u) 11423 | -7/Garrison | Installed Relay Interface Framework 11511 | -7/Garrison | Rescued a captive Derelict 11512 | -7/Garrison | Rescued a captive Derelict 11674 | -7/Garrison | Triggered checkpoint 11784 | -7/Garrison | Triggered checkpoint 11824 | -7/Garrison | Triggered checkpoint 11857 | -7/Garrison | Build established: Scavenger-Mutant 12498 | -7/Garrison | Expanded RIF knowledge: Program Shield 12522 | -7/Garrison | Core integrity fell below 20% 12590 | -7/Garrison | Triggered checkpoint 12620 | -7/Garrison | Garrison Relay disabled 12675 | -7/Garrison | Discovered new exit (range 10) 12889 | -7/Garrison | Triggered checkpoint 12901 | -7/Garrison | Discovered new exit (range 12) 12992 | -7/Garrison | Triggered checkpoint 13026 | -7/Garrison | Garrison Relay disabled 13338 | -7/Garrison | Spotted B-75 Beast 13376 | -7/Garrison | Destroyed B-75 Beast 13747 | -7/Garrison | Entered Factory 13892 | -7/Factory | Discovered new exit (range 7) 13943 | -7/Factory | Repaired Imp. Cooling System 14006 | -7/Factory | Repaired Imp. Phase Shifter 14109 | -7/Factory | Entered another Factory area 14109 | -6/Factory | Evolved 2 slots: Power x1, Weapon x1 14353 | -6/Factory | Spotted B-75 Beast 14512 | -6/Factory | Identified exit to Garrison 14512 | -6/Factory | Entered Garrison 14536 | -6/Garrison | Discovered new exit (range 41) 14536 | -6/Garrison | Discovered new exit (range 59) 14536 | -6/Garrison | Discovered new exit (range 49) 14566 | -6/Garrison | Heavy support dispatched to Factory 14572 | -6/Garrison | Garrison Relay disabled 14642 | -6/Garrison | Build established: Mutant 14716 | -6/Garrison | Triggered checkpoint 14993 | -6/Garrison | Heavy support dispatched to Factory 15043 | -6/Garrison | H-XX Assembler disabled 15090 | -6/Garrison | Found Prototype Device 15090 | -6/Garrison | Identified Active Sensor Suite 15380 | -6/Garrison | Triggered checkpoint 15464 | -6/Garrison | Lost 5 parts (3u2w) 15643 | -6/Garrison | Garrison Relay disabled 15781 | -6/Garrison | Build established: Scavenger-Mutant 16026 | -6/Garrison | Triggered checkpoint 16089 | -6/Garrison | Triggered checkpoint 16250 | -6/Garrison | Rewired Striker 16256 | -6/Garrison | Rewired Striker 16352 | -6/Garrison | Triggered checkpoint 16459 | -6/Garrison | Garrison Relay disabled 16584 | -6/Garrison | Triggered checkpoint 17022 | -6/Garrison | Build established: Scavenger-Tank 17090 | -6/Garrison | Expanded RIF knowledge: Alert ID Control 17212 | -6/Garrison | Triggered checkpoint 17262 | -6/Garrison | Garrison Relay disabled 17336 | -6/Garrison | Build established: Scavenger-Mutant 18940 | -6/Garrison | Build established: Scavenger-Gunner 19442 | -6/Garrison | Triggered checkpoint 19925 | -6/Garrison | Entered Factory 19925 | -6/Factory | Accompanied by 3 allies 20193 | -6/Factory | Identified exit to Garrison 20212 | -6/Factory | Entered Garrison 20212 | -6/Garrison | Accompanied by 3 allies 20303 | -6/Garrison | Build established: Scavenger-Tank 20402 | -6/Garrison | Triggered checkpoint 20404 | -6/Garrison | Triggered checkpoint 20416 | -6/Garrison | Core integrity fell below 50% 20443 | -6/Garrison | Lost 3 allies 20487 | -6/Garrison | Core integrity fell below 20% 20503 | -6/Garrison | Destroyed by L-41 Fighter with Axe Last Messages --------------- 20490_ Target Analyzer destroyed. 20491_ Penetrated by Slug. 20492_ The unstable cave ceiling collapses. 20492_ G-50 Soldier crushed by falling debris. 20492_ G-50 Soldier destroyed. 20492_ 11 Matter crushed. 20493_ The unstable cave ceiling collapses. 20494_ Carbon-fiber Leg severed. 20495_ Critical hit (Burn: +37). 20497_ Acquired Com. Linear Accelerator. 20498_ Penetrated by Slug. 20498_ Slug penetrates Earth. 20498_ Kicked G-50 Soldier out of the way. 20499_ Neutrino Core destroyed. 20500_ G-50 Soldier heat short circuits Carbon-fiber Leg. 20501_ Acquired 35 matter. 20501_ Imp. Targeting Computer destroyed. 20503_ G-50 Soldier heat short circuits Carbon-fiber Leg. Map ----- +----------------------------------------------------+ | ?????????????????????????????????????????????????? | | ?????????????????????????????????????????????????? | | ?????????????????????????????????????????????????? | | ?????????????????????????????????????????????????? | | ?????????????????????????????????????????????????? | | ?????????????????????????????????????????????????? | | ?????????????????????????????????????????????????? | | ?????????????????????????????????????????????????? | | ?????????????????????????????????????????????????? | | ?????????????????????????????????????????????????? | | ?????????????????????????????????????????????????? | | ???????????????????????#####?????????????????????? | | ??????????????????? ?? ?????????????????????? | | ??????????????????? ?? ?????????????????????? | | ????????????????? ? ?????????????????????? | | ?????????????? ?# ?# #?????????????????????? | | ????????????? ## ## ###???????????????????? | | ????????????? #???????????????????? | | ????????????? % ????????????????????? | | ?????????????? % ????????????????????? | | ???????????????? * i ?????????????????????? | | ????????????# ???# % %;d% #?????????????????????? | | ???????????## ## # ! #?????????????????????? | | ??????????% =! % ######????????????????? | | ?????????? % gg h #????????????????? | | ????????????# !%bg@= ##???????????????????? | | ?????????????????# =%#gl=# #???????????????????? | | ??????????????????????#* Y #???????????????????? | | ??????????????????????##= # ##???????????????????? | | ????????????????????# #???????????????????? | | ????????????????????# # ##???????????????????? | | ????????????????????# # #????????????????????? | | ????????????????????## # ###????????????????????? | | ?????????????????????### ##############?????????? | | ???????????????????????# #?????????? | | ???????????????????????# ##### #???? | | ???????????????????????############## #???? | | ????????????????????????????????????# ##### #???? | | ????????????????????????????????????# #?????????? | | ????????????????????????????????????# #?????????? | | ????????????????????????????????????# #?????????? | | ????????????????????????????????????# ###???????? | | ????????????????????????????????????# #???????? | | ????????????????????????????????????# #???????? | | ????????????????????????????????????# #???????? | | ????????????????????????????????????######???????? | | ?????????????????????????????????????????????????? | | ?????????????????????????????????????????????????? | | ?????????????????????????????????????????????????? | | ?????????????????????????????????????????????????? | +----------------------------------------------------+ Best States ------------- Heat Dissipation 102 Energy Generation 41 Energy Capacity 480 Matter Stores 300 Matter Capacity 300 Sight Range 16 Robot Scan Range 20 Terrain Scan Range 16 Terrain Scan Density 210 Armor Coverage 600 Resistance: KI 30 Resistance: TH 20 Resistance: EX 45 Resistance: EM 20 Resistance: I 20 Resistance: S 20 Resistance: P 20 Core Shielding 20 Propulsion Shielding 33 Utility Shielding 33 Weapon Shielding 33 Weapon Cycling 15 Phase Shifting 10 Evasion (%) 55 Targeting Accuracy 6 Target Analysis 5 Recoil Reduction 10 Offensive Hacking 10 Defensive Hacking 10 Relay Coupler Types 1 Relay Coupler Value 42 Authchip Count 3 Item Schematics ----------------- Huge Storage Unit | -10/Materials | Hacked Adv. Assault Cannon | -8/Materials | Scanalyzed Myomer Leg | -7/Factory | Scanalyzed Robot Schematics ------------------ None Fabricated ------------ Nothing Alien Tech Used ----------------- None Achievements -------------- None Challenges ------------ None Game ------ Seed AlloyNavigationMapper Manual? 0 Play Time 02:22:01 Cumulative 86.2 hours Start 2024.07.26 @ 10:19:34 End 2024.07.26 @ 15:17:45 Sessions 1 Manual Loads 0 Difficulty Adventurer Special Mode None Game No. 123 Rogue 0 Adventurer 123 Explorer 0 Win Type - Total 0 Types 0/0/0/0/0/0/0/0/0 Lore% 45 Gallery% 46 Achievement% 33 Wizard Run 0 Options --------- Layout 2 ASCII 0 Keyboard 0 Movement Mouse Keybinds 0 Fullscreen 2 Font 48/Smallcaps Map View 50x44 Zoom Use 0% Tactical HUD 1 Map Filters NONE Filters NONE Steam 1 RUN: 547d949c-d65c-4e27-985b-41931dacf4fe